[Event "ESP-chT Primera Division 2019"]
[Site "Linares"]
[Date "2019.09.01"]
[Round "7.10"]
[White "Vaya Gomez, Alejandro"]
[Black "Alshameary Puente, Ismael"]
[Result "1-0"]
[ECO "A22"]
[WhiteElo "2032"]
[BlackElo "2444"]
[Annotator "NA"]
[PlyCount "47"]
[EventDate "2019.08.26"]
[EventType "team-tourn"]
[EventCountry "ESP"]
[SourceTitle "playchess.com"]
[Source "ChessBase"]
[SourceQuality "1"]
[TimeControl "5400+30"]

1. c4 {[%emt 0:00:00]} e5 {[%emt 0:00:00]} 2. Nc3 {[%emt 0:00:00]} Nf6 {[%emt 0:00:00]} 3. g3 {[%emt 0:00:00]} d5 {[%emt 0:00:00]} 4. cxd5 {[%emt 0:00:00]} Nxd5 {[%emt 0:00:00]} 5. Bg2 {[%emt 0:00:00]} Nb6 {[%emt 0:00:00]} 6. d3 {[%emt 0:00:52]} Be7 {[%emt 0:00:00]} 7. Nf3 {[%emt 0:00:07]} Nc6 {[%emt 0:00:01]} 8. O-O {[%emt 0:00:07]} O-O {[%emt 0:00:05]} 9. a3 {[%emt 0:00:33]} Re8 {[%emt 0:00:11]} 10. b4 {[%emt 0:00:46]} Bf8 {[%emt 0:00:06]} 11. Bb2 {[%emt 0:00:23]} a5 {[%emt 0:01:59]} 12. b5 {[%emt 0:00:44]} Nd4 {[%emt 0:00:02]} 13. e3 {[%emt 0:03:45]} Nxf3+ {[%emt 0:03:01]} 14. Bxf3 {[%emt 0:01:09]} a4 {[%emt 0:00:11]} 15. Rc1 {[%emt 0:08:38]} Ra7 {[%emt 0:15:50]} 16. Qc2 {[%emt 0:12:49]} Bh3 {[%emt 0:07:11]} 17. Rfe1 {[%emt 0:05:12]} Qd7 {[%emt 0:00:15]} 18. Ne4 {[%emt 0:26:25]} Qxb5 {[%emt 0:12:01]} 19. d4 {[%emt 0:04:47]} Nc4 {[%emt 0:30:20]} 20. Qxc4 {[%emt 0:16:21]} Qxb2 {[%emt 0:00:37]} 21. Ng5 {[%emt 0:00:16]} Be6 {[%emt 0:00:09]} 22. d5 {[%emt 0:00:43]} Bc8 {[%emt 0:00:54]} 23. Qxc7 {[%emt 0:03:15]} Be7 {[%emt 0:01:52]} 24. Qxe7 {[%emt 0:00:33]} 1-0

[Event "ESP-chT Primera Division 2019"]
[Site "Linares"]
[Date "2019.09.01"]
[Round "7.11"]
[White "Cori T., Deysi"]
[Black "Iglesias Ferreira, Andres"]
[Result "1-0"]
[ECO "D20"]
[WhiteElo "2400"]
[BlackElo "1845"]
[Annotator "NA"]
[PlyCount "91"]
[EventDate "2019.08.26"]
[EventType "team-tourn"]
[EventCountry "ESP"]
[SourceTitle "playchess.com"]
[Source "ChessBase"]
[SourceQuality "1"]
[TimeControl "5400+30"]

1. d4 {[%emt 0:00:00]} d5 {[%emt 0:00:00]} 2. c4 {[%emt 0:00:00]} dxc4 {[%emt 0:00:00]} 3. e3 {[%emt 0:01:55]} a6 {[%emt 0:00:07]} 4. Bxc4 {[%emt 0:00:24]} b5 {[%emt 0:00:26]} 5. Qf3 {[%emt 0:14:00]} bxc4 {[%emt 0:08:13]} 6. Qxa8 {[%emt 0:00:05]} Be6 {[%emt 0:06:43]} 7. Nc3 {[%emt 0:00:34]} Nf6 {[%emt 0:04:55]} 8. e4 {[%emt 0:00:40]} Bd7 {[%emt 0:06:57]} 9. Bf4 {[%emt 0:04:06]} e6 {[%emt 0:20:44]} 10. Nge2 {[%emt 0:09:41]} Nh5 {[%emt 0:12:54]} 11. Be3 {[%emt 0:04:36]} Bd6 {[%emt 0:02:03]} 12. e5 {[%emt 0:10:07]} Bc6 {[%emt 0:02:18]} 13. Qa7 {[%emt 0:00:01]} Bb4 {[%emt 0:03:23]} 14. a3 {[%emt 0:03:49]} Ba5 {[%emt 0:08:38]} 15. Qc5 {[%emt 0:00:42]} Bb5 {[%emt 0:00:30]} 16. a4 {[%emt 0:01:08]} Nd7 {[%emt 0:00:59]} 17. Qa3 {[%emt 0:10:29]} Bc6 {[%emt 0:00:26]} 18. O-O {[%emt 0:00:25]} Qh4 {[%emt 0:00:37]} 19. d5 {[%emt 0:10:32]} exd5 {[%emt 0:01:58]} 20. Nd4 {[%emt 0:03:20]} Bb7 {[%emt 0:05:15]} 21. Nf5 {[%emt 0:00:49]} Qd8 {[%emt 0:00:18]} 22. h4 {[%emt 0:07:30]} h6 {[%emt 0:02:37]} 23. Rad1 {[%emt 0:00:20]} g6 {[%emt 0:01:49]} 24. Nxh6 {[%emt 0:00:17]} Qe7 {[%emt 0:03:30]} 25. Qxe7+ {[%emt 0:08:43]} Kxe7 {[%emt 0:00:07]} 26. Nxd5+ {[%emt 0:00:04]} Ke6 {[%emt 0:00:22]} 27. Nc3 {[%emt 0:00:38]} Nb6 {[%emt 0:02:29]} 28. g4 {[%emt 0:01:42]} Ng7 {[%emt 0:01:44]} 29. f4 {[%emt 0:00:25]} Bxc3 {[%emt 0:00:40]} 30. bxc3 {[%emt 0:00:56]} Be4 {[%emt 0:01:50]} 31. Bxb6 {[%emt 0:02:16]} Rxh6 {[%emt 0:02:01]} 32. Bxc7 {[%emt 0:00:02]} Bd3 {[%emt 0:00:32]} 33. Bd8 {[%emt 0:00:31]} Ne8 {[%emt 0:00:36]} 34. Rf3 {[%emt 0:00:52]} Rh7 {[%emt 0:00:42]} 35. Rfxd3 {[%emt 0:00:49]} cxd3 {[%emt 0:00:08]} 36. Rxd3 {[%emt 0:00:01]} f5 {[%emt 0:00:27]} 37. exf6 {[%emt 0:00:18]} Nxf6 {[%emt 0:00:09]} 38. Bxf6 {[%emt 0:01:42]} Kxf6 {[%emt 0:00:02]} 39. Rd6+ {[%emt 0:00:05]} Ke7 {[%emt 0:00:11]} 40. Rxa6 {[%emt 0:00:09]} Rxh4 {[%emt 0:00:04]} 41. Rxg6 {[%emt 0:00:05]} Rh3 {[%emt 0:00:15]} 42. a5 {[%emt 0:00:34]} Rxc3 {[%emt 0:00:14]} 43. Kf2 {[%emt 0:00:25]} Ra3 {[%emt 0:00:16]} 44. a6 {[%emt 0:00:02]} Kf7 {[%emt 0:00:16]} 45. Rb6 {[%emt 0:00:06]} Kf8 {[%emt 0:00:24]} 46. g5 {[%emt 0:00:15]} 1-0

[Event "ESP-chT Primera Division 2019"]
[Site "Linares"]
[Date "2019.09.01"]
[Round "7.12"]
[White "Garcia Elio, Elisa"]
[Black "Antunez Munoz, Ines"]
[Result "0-1"]
[ECO "D00"]
[WhiteElo "1812"]
[BlackElo "1891"]
[Annotator "NA"]
[PlyCount "88"]
[EventDate "2019.08.26"]
[EventType "team-tourn"]
[EventCountry "ESP"]
[SourceTitle "playchess.com"]
[Source "ChessBase"]
[SourceQuality "1"]
[TimeControl "5400+30"]

1. d4 {[%emt 0:00:00]} d5 {[%emt 0:00:08]} 2. Bf4 {[%emt 0:00:56]} e6 {[%emt 0:00:21]} 3. e3 {[%emt 0:01:41]} Nf6 {[%emt 0:00:39]} 4. Nf3 {[%emt 0:02:03]} c5 {[%emt 0:00:16]} 5. c3 {[%emt 0:02:05]} Nc6 {[%emt 0:03:01]} 6. Bd3 {[%emt 0:07:37]} Qb6 {[%emt 0:11:35]} 7. Qb3 {[%emt 0:23:17]} c4 {[%emt 0:02:14]} 8. Qxb6 {[%emt 0:00:27]} axb6 {[%emt 0:00:06]} 9. Bc2 {[%emt 0:02:04]} b5 {[%emt 0:01:06]} 10. O-O {[%emt 0:04:57]} b4 {[%emt 0:03:33]} 11. Nbd2 {[%emt 0:08:18]} Be7 {[%emt 0:03:20]} 12. Ne5 {[%emt 0:09:44]} Nxe5 {[%emt 0:02:47]} 13. Bxe5 {[%emt 0:00:26]} O-O {[%emt 0:02:19]} 14. h3 {[%emt 0:05:47]} Bd7 {[%emt 0:01:39]} 15. e4 {[%emt 0:02:23]} Ra6 {[%emt 0:04:07]} 16. Bxf6 {[%emt 0:04:20]} Bxf6 {[%emt 0:06:19]} 17. cxb4 {[%emt 0:11:45]} Bxd4 {[%emt 0:00:22]} 18. Rad1 {[%emt 0:03:49]} Bb5 {[%emt 0:06:17]} 19. a4 {[%emt 0:01:01]} Bxa4 20. Bxa4 {[%emt 0:00:21]} Rxa4 {[%emt 0:00:54]} 21. Nxc4 {[%emt 0:04:56]} Bxf2+ {[%emt 0:08:34]} 22. Rxf2 {[%emt 0:00:18]} dxc4 {[%emt 0:00:07]} 23. b5 {[%emt 0:00:48]} Rb4 {[%emt 0:01:40]} 24. Rd4 {[%emt 0:00:30]} h6 {[%emt 0:00:39]} 25. Kh2 {[%emt 0:01:16]} Kh7 {[%emt 0:02:26]} 26. Rc2 {[%emt 0:01:23]} Rc8 {[%emt 0:00:57]} 27. Rd7 {[%emt 0:00:15]} Rxb5 {[%emt 0:05:40]} 28. Rxf7 {[%emt 0:00:14]} b6 {[%emt 0:00:57]} 29. Rd2 {[%emt 0:00:34]} Kg6 {[%emt 0:01:50]} 30. Rdd7 {[%emt 0:00:37]} Rg8 {[%emt 0:00:47]} 31. Rf2 {[%emt 0:00:27]} Re5 {[%emt 0:03:11]} 32. Rd6 {[%emt 0:00:42]} b5 {[%emt 0:01:29]} 33. Rb6 {[%emt 0:00:08]} Rd8 {[%emt 0:00:38]} 34. Kg3 {[%emt 0:00:51]} Rd4 {[%emt 0:03:03]} 35. Rb7 {[%emt 0:00:26]} Rg5+ {[%emt 0:02:18]} 36. Kf3 {[%emt 0:00:48]} Rd3+ {[%emt 0:02:42]} 37. Ke2 {[%emt 0:00:14]} Rb3 {[%emt 0:00:13]} 38. Kf1 {[%emt 0:00:28]} Re3 {[%emt 0:02:38]} 39. Rf4 {[%emt 0:00:58]} Rb3 {[%emt 0:01:48]} 40. Rf2 {[%emt 0:00:15]} Kh7 {[%emt 0:01:26]} 41. Rb6 {[%emt 0:00:45]} Re5 {[%emt 0:00:28]} 42. Rf4 {[%emt 0:00:33]} Rxb2 {[%emt 0:00:18]} 43. Rb7 {[%emt 0:00:14]} c3 {[%emt 0:01:06]} 44. h4 {[%emt 0:00:42]} c2 {[%emt 0:00:23]} 0-1

[Event "ESP-chT Primera Division 2019"]
[Site "Linares"]
[Date "2019.09.01"]
[Round "7.15"]
[White "Henderson de La Fuente, Lance"]
[Black "Alonso Moyano, Jonathan"]
[Result "1-0"]
[ECO "B94"]
[WhiteElo "2487"]
[BlackElo "2358"]
[Annotator "ChessBase"]
[PlyCount "93"]
[EventDate "2019.08.26"]
[EventType "team-tourn"]
[EventCountry "ESP"]
[SourceTitle "playchess.com"]
[Source "ChessBase"]
[SourceQuality "1"]
[TimeControl "5400+30"]

1. e4 {[%emt 0:00:00]} c5 {[%emt 0:00:00]} 2. Nf3 {[%emt 0:00:00]} d6 {[%emt 0:00:00]} 3. d4 {[%emt 0:00:00]} Nf6 {[%emt 0:00:00]} 4. Nc3 {[%emt 0:00:02]} cxd4 {[%emt 0:00:01]} 5. Nxd4 {[%emt 0:00:06]} a6 {[%emt 0:00:07]} 6. Bg5 {[%emt 0:00:12]} Nbd7 {[%emt 0:00:16]} 7. Qe2 {[%emt 0:00:30]} e6 {[%emt 0:11:11]} 8. O-O-O {[%emt 0:01:12]} Be7 {[%emt 0:00:09]} 9. Be3 {[%emt 0:01:23]} h5 {[%emt 0:09:59]} 10. g3 {[%emt 0:00:36]} Qc7 {[%emt 0:02:08]} 11. Bg2 {[%emt 0:03:02]} g6 {[%emt 0:11:42]} 12. Kb1 {[%emt 0:02:21]} e5 {[%emt 0:07:10]} 13. Nb3 {[%emt 0:03:20]} b5 {[%emt 0:00:19]} 14. f4 {[%emt 0:04:52]} b4 {[%emt 0:09:46]} 15. Nd5 {[%emt 0:00:27]} Nxd5 {[%emt 0:00:06]} 16. exd5 {[%emt 0:00:17]} a5 {[%emt 0:00:38]} 17. Rhe1 {[%emt 0:12:25]} O-O {[%emt 0:05:32]} 18. Nc1 {[%emt 0:09:13]} exf4 {[%emt 0:09:27]} 19. Bxf4 {[%emt 0:07:28]} Bf6 {[%emt 0:01:35]} 20. Bh6 {[%emt 0:00:40]} Ba6 {[%emt 0:01:47]} 21. Qf2 {[%emt 0:00:54]} Rfe8 {[%emt 0:01:43]} 22. Rxe8+ {[%emt 0:10:01]} Rxe8 {[%emt 0:00:11]} 23. Bf1 {[%emt 0:00:27]} Bxf1 {[%emt 0:11:05]} 24. Rxf1 {[%emt 0:00:05]} Re5 {[%emt 0:00:07]} 25. Nd3 {[%emt 0:04:33]} Rxd5 {[%emt 0:05:16]} 26. Qe3 {[%emt 0:01:55]} Qd8 {[%emt 0:02:05]} 27. Qe4 {[%emt 0:05:42]} Rd4 {[%emt 0:01:48]} 28. Qf3 {[%emt 0:05:29]} Qe7 {[%emt 0:00:42]} 29. Qa8+ {[%emt 0:11:40]} Kh7 {[%emt 0:00:10]} 30. Bc1 {[%emt 0:00:23]} Nc5 {[%emt 0:02:28]} 31. Nf4 {[%emt 0:06:12]} Qe4 {[%emt 0:03:12]} 32. Qf8 {[%emt 0:01:57]} Qe7 {[%emt 0:02:37]} 33. Qa8 {[%emt 0:01:48]} Bg7 {[%emt 0:01:22]} 34. Qxa5 {[%emt 0:01:04]} Ne4 {[%emt 0:00:30]} 35. Nd3 {[%emt 0:01:05]} f5 {[%emt 0:01:00]} 36. Qb5 {[%emt 0:03:21]} d5 {[%emt 0:00:42]} 37. Rd1 {[%emt 0:00:41]} Nc5 {[%emt 0:00:48]} 38. Re1 {[%emt 0:00:38]} Re4 {[%emt 0:00:26]} 39. Rxe4 {[%emt 0:00:12]} Nxe4 {[%emt 0:00:02]} 40. Qxb4 {[%emt 0:00:38]} Qa7 {[%emt 0:01:14]} 41. a4 {[%emt 0:00:32]} Qg1 {[%emt 0:00:17]} 42. a5 {[%emt 0:00:17]} Qxh2 {[%emt 0:00:35]} 43. a6 {[%emt 0:00:16]} Qg1 {[%emt 0:00:14]} 44. Qb7 {[%emt 0:01:18]} Nd6 {[%emt 0:00:20]} 45. Qd7 {[%emt 0:01:04]} Nc4 {[%emt 0:00:46]} 46. a7 {[%emt 0:00:41]} Nb6 {[%emt 0:00:50]} 47. Qb7 {[%emt 0:00:31]} 1-0

[Event "ESP-chT Primera Division 2019"]
[Site "Linares"]
[Date "2019.09.01"]
[Round "7.16"]
[White "Martinez Ramirez, Erik"]
[Black "Cramling, Pia"]
[Result "1/2-1/2"]
[ECO "B46"]
[WhiteElo "2217"]
[BlackElo "2493"]
[Annotator "ChessBase"]
[PlyCount "146"]
[EventDate "2019.08.26"]
[EventType "team-tourn"]
[EventCountry "ESP"]
[SourceTitle "playchess.com"]
[Source "ChessBase"]
[SourceQuality "1"]
[TimeControl "5400+30"]

1. e4 {[%emt 0:00:00]} c5 {[%emt 0:00:00]} 2. Nf3 {[%emt 0:00:00]} Nc6 {[%emt 0:00:00]} 3. d4 {[%emt 0:00:00]} cxd4 {[%emt 0:00:04]} 4. Nxd4 {[%emt 0:00:00]} e6 {[%emt 0:00:16]} 5. Nc3 {[%emt 0:00:04]} a6 {[%emt 0:00:15]} 6. Be3 {[%emt 0:02:30]} Nf6 {[%emt 0:00:53]} 7. Bd3 {[%emt 0:00:53]} Qc7 {[%emt 0:04:30]} 8. O-O {[%emt 0:01:57]} Nxd4 {[%emt 0:00:19]} 9. Bxd4 {[%emt 0:00:08]} Bc5 {[%emt 0:00:08]} 10. Bxc5 {[%emt 0:00:32]} Qxc5 {[%emt 0:00:06]} 11. Qe2 {[%emt 0:01:20]} d6 {[%emt 0:00:43]} 12. Rfe1 {[%emt 0:04:36]} e5 {[%emt 0:03:57]} 13. Bc4 {[%emt 0:01:46]} Be6 {[%emt 0:08:44]} 14. Bb3 {[%emt 0:00:36]} Rc8 {[%emt 0:03:21]} 15. Qe3 {[%emt 0:00:59]} Qxe3 {[%emt 0:05:33]} 16. Rxe3 {[%emt 0:00:19]} Ke7 {[%emt 0:00:19]} 17. Rd1 {[%emt 0:04:10]} Rc6 {[%emt 0:01:28]} 18. Rd2 {[%emt 0:12:11]} Rhc8 {[%emt 0:05:13]} 19. f3 {[%emt 0:01:04]} b5 {[%emt 0:03:30]} 20. Ree2 {[%emt 0:00:27]} Rb6 {[%emt 0:18:52]} 21. Nd1 {[%emt 0:10:24]} a5 {[%emt 0:03:05]} 22. Ne3 {[%emt 0:04:14]} Rc5 {[%emt 0:01:30]} 23. c3 {[%emt 0:04:42]} b4 {[%emt 0:15:07]} 24. c4 {[%emt 0:04:11]} Ra6 {[%emt 0:02:28]} 25. Nd5+ {[%emt 0:00:42]} Bxd5 {[%emt 0:01:19]} 26. cxd5 {[%emt 0:00:17]} a4 {[%emt 0:01:39]} 27. Bc2 {[%emt 0:02:13]} Nd7 {[%emt 0:00:08]} 28. b3 {[%emt 0:07:40]} a3 {[%emt 0:02:50]} 29. Bd3 {[%emt 0:01:48]} Rc1+ {[%emt 0:00:05]} 30. Kf2 {[%emt 0:00:04]} Ra5 {[%emt 0:00:06]} 31. Rc2 {[%emt 0:00:23]} Rc5 {[%emt 0:00:26]} 32. Bc4 {[%emt 0:03:17]} Rh1 {[%emt 0:00:44]} 33. h3 {[%emt 0:01:01]} g6 {[%emt 0:00:26]} 34. Re1 {[%emt 0:02:20]} Rxe1 {[%emt 0:00:06]} 35. Kxe1 {[%emt 0:00:03]} f5 {[%emt 0:00:35]} 36. g3 {[%emt 0:02:29]} Rc8 {[%emt 0:03:40]} 37. Kf2 {[%emt 0:03:15]} Nf6 {[%emt 0:05:47]} 38. Bd3 {[%emt 0:03:28]} Rxc2+ {[%emt 0:00:50]} 39. Bxc2 {[%emt 0:00:01]} f4 {[%emt 0:02:36]} 40. g4 {[%emt 0:01:40]} Nd7 {[%emt 0:00:41]} 41. h4 {[%emt 0:01:00]} h6 {[%emt 0:01:19]} 42. Ke2 {[%emt 0:02:19]} g5 {[%emt 0:01:25]} 43. h5 {[%emt 0:00:40]} Nc5 {[%emt 0:00:15]} 44. Kd2 {[%emt 0:00:10]} Kd8 {[%emt 0:00:14]} 45. Bd1 {[%emt 0:01:10]} Kc7 {[%emt 0:00:06]} 46. Kc2 {[%emt 0:00:20]} Kb6 {[%emt 0:00:15]} 47. Kd2 {[%emt 0:04:30]} Nd7 {[%emt 0:00:26]} 48. Be2 {[%emt 0:02:53]} Kc5 {[%emt 0:00:26]} 49. Bd3 {[%emt 0:01:20]} Kd4 {[%emt 0:00:38]} 50. Bb1 {[%emt 0:00:15]} Nf6 {[%emt 0:01:32]} 51. Bd3 {[%emt 0:01:25]} Nd7 {[%emt 0:03:08]} 52. Bb1 {[%emt 0:00:06]} Nb6 {[%emt 0:00:59]} 53. Bc2 {[%emt 0:00:19]} Kc5 {[%emt 0:00:06]} 54. Kd3 {[%emt 0:00:33]} Kb5 {[%emt 0:00:30]} 55. Kd2 {[%emt 0:00:19]} Nc8 {[%emt 0:00:20]} 56. Bd3+ {[%emt 0:00:21]} Kc5 {[%emt 0:00:05]} 57. Bc2 {[%emt 0:01:01]} Kd4 {[%emt 0:00:49]} 58. Bb1 {[%emt 0:00:19]} Ne7 {[%emt 0:00:09]} 59. Bc2 {[%emt 0:00:30]} Ng8 {[%emt 0:00:08]} 60. Bb1 {[%emt 0:00:16]} Nf6 {[%emt 0:00:15]} 61. Bc2 {[%emt 0:00:26]} Nd7 {[%emt 0:02:06]} 62. Bb1 {[%emt 0:00:10]} Nb6 {[%emt 0:02:16]} 63. Bc2 {[%emt 0:00:06]} Kc5 {[%emt 0:00:11]} 64. Kd3 {[%emt 0:00:28]} Na8 {[%emt 0:00:38]} 65. Kd2 {[%emt 0:00:25]} Nc7 {[%emt 0:00:04]} 66. Bd3 {[%emt 0:00:13]} Nxd5 {[%emt 0:01:20]} 67. exd5 {[%emt 0:00:06]} Kxd5 {[%emt 0:00:02]} 68. Bf1 {[%emt 0:05:39]} Kd4 {[%emt 0:00:07]} 69. Bg2 {[%emt 0:01:41]} d5 {[%emt 0:00:10]} 70. Bh1 {[%emt 0:00:03]} e4 {[%emt 0:00:12]} 71. Bg2 {[%emt 0:00:02]} Ke5 {[%emt 0:01:05]} 72. Bh1 {[%emt 0:01:12]} Kd4 {[%emt 0:00:08]} 73. Bg2 {[%emt 0:00:03]} Ke5 {[%emt 0:01:26]} 1/2-1/2

[Event "ESP-chT Primera Division 2019"]
[Site "Linares"]
[Date "2019.09.01"]
[Round "7.17"]
[White "Castellanos Rodriguez, Renier"]
[Black "Rivas Garcia, Victor"]
[Result "1/2-1/2"]
[ECO "B40"]
[WhiteElo "2493"]
[BlackElo "2165"]
[Annotator "ChessBase"]
[PlyCount "68"]
[EventDate "2019.08.26"]
[EventType "team-tourn"]
[EventCountry "ESP"]
[SourceTitle "playchess.com"]
[Source "ChessBase"]
[SourceQuality "1"]
[TimeControl "5400+30"]

1. e4 {[%emt 0:00:00]} c5 {[%emt 0:00:00]} 2. Nf3 {[%emt 0:00:00]} e6 {[%emt 0:00:00]} 3. g3 {[%emt 0:03:24]} Nc6 {[%emt 0:01:24]} 4. Bg2 {[%emt 0:00:09]} Nf6 {[%emt 0:02:15]} 5. Qe2 {[%emt 0:01:18]} Be7 {[%emt 0:01:57]} 6. O-O {[%emt 0:01:22]} d5 {[%emt 0:02:02]} 7. d3 {[%emt 0:02:10]} b5 {[%emt 0:04:15]} 8. a4 {[%emt 0:06:35]} b4 {[%emt 0:01:36]} 9. Re1 {[%emt 0:02:40]} O-O {[%emt 0:02:51]} 10. e5 {[%emt 0:00:35]} Nd7 {[%emt 0:00:27]} 11. Bf4 {[%emt 0:01:47]} a5 {[%emt 0:02:05]} 12. h4 {[%emt 0:00:42]} Ba6 {[%emt 0:01:01]} 13. Qd1 {[%emt 0:06:56]} Nb6 {[%emt 0:09:14]} 14. Nbd2 {[%emt 0:00:49]} c4 {[%emt 0:03:36]} 15. d4 {[%emt 0:02:19]} c3 {[%emt 0:00:33]} 16. bxc3 {[%emt 0:00:06]} bxc3 {[%emt 0:00:09]} 17. Nb3 {[%emt 0:00:54]} Nc4 {[%emt 0:04:12]} 18. Ng5 {[%emt 0:04:01]} h6 {[%emt 0:06:24]} 19. Nh3 {[%emt 0:05:36]} Qe8 {[%emt 0:03:55]} 20. Bc1 {[%emt 0:03:19]} Nb4 {[%emt 0:06:34]} 21. Nf4 {[%emt 0:08:05]} Kh7 {[%emt 0:05:40]} 22. Qf3 {[%emt 0:09:21]} Rc8 {[%emt 0:09:23]} 23. Bf1 {[%emt 0:03:09]} Nd2 {[%emt 0:03:32]} 24. Nxd2 {[%emt 0:00:23]} cxd2 {[%emt 0:00:06]} 25. Bxd2 {[%emt 0:00:06]} Bxf1 {[%emt 0:00:41]} 26. Bxb4 {[%emt 0:02:55]} Bxb4 {[%emt 0:00:19]} 27. Rxf1 {[%emt 0:00:19]} Rc4 {[%emt 0:02:20]} 28. Ne2 {[%emt 0:04:51]} Qc6 {[%emt 0:01:02]} 29. Ra2 {[%emt 0:02:29]} Kg8 {[%emt 0:00:34]} 30. Qb3 {[%emt 0:04:00]} Rc8 {[%emt 0:00:32]} 31. Rc1 {[%emt 0:00:20]} Bd2 {[%emt 0:01:47]} 32. Rd1 {[%emt 0:00:18]} Bb4 {[%emt 0:00:25]} 33. Rc1 {[%emt 0:00:35]} Bd2 {[%emt 0:00:06]} 34. Rd1 {[%emt 0:00:32]} Bb4 {[%emt 0:00:05]} 1/2-1/2

[Event "ESP-chT Primera Division 2019"]
[Site "Linares"]
[Date "2019.09.01"]
[Round "7.18"]
[White "Garcia-Castany Musellas, Gal.la"]
[Black "Oliva Castaneda, Kevel"]
[Result "0-1"]
[ECO "C77"]
[WhiteElo "2149"]
[BlackElo "2479"]
[Annotator "ChessBase"]
[PlyCount "92"]
[EventDate "2019.08.26"]
[EventType "team-tourn"]
[EventCountry "ESP"]
[SourceTitle "playchess.com"]
[Source "ChessBase"]
[SourceQuality "1"]
[TimeControl "5400+30"]

1. e4 {[%emt 0:00:00]} e5 {[%emt 0:00:00]} 2. Nf3 {[%emt 0:00:00]} Nc6 {[%emt 0:00:00]} 3. Bb5 {[%emt 0:00:00]} a6 {[%emt 0:00:00]} 4. Ba4 {[%emt 0:00:00]} Nf6 {[%emt 0:00:00]} 5. d3 {[%emt 0:00:14]} d6 {[%emt 0:04:43]} 6. c3 {[%emt 0:00:35]} g6 {[%emt 0:00:25]} 7. O-O {[%emt 0:03:01]} Bg7 {[%emt 0:00:04]} 8. Nbd2 {[%emt 0:00:47]} O-O {[%emt 0:00:21]} 9. Re1 {[%emt 0:07:08]} b5 {[%emt 0:01:23]} 10. Bc2 {[%emt 0:02:06]} Re8 {[%emt 0:00:34]} 11. Nf1 {[%emt 0:00:57]} h6 {[%emt 0:00:09]} 12. h3 {[%emt 0:00:25]} Bb7 {[%emt 0:00:16]} 13. a4 {[%emt 0:02:08]} d5 {[%emt 0:00:37]} 14. axb5 {[%emt 0:02:27]} axb5 {[%emt 0:00:06]} 15. Rxa8 {[%emt 0:00:10]} Qxa8 {[%emt 0:01:08]} 16. Ne3 {[%emt 0:07:04]} d4 {[%emt 0:06:18]} 17. Ng4 {[%emt 0:03:11]} Nxg4 {[%emt 0:00:11]} 18. hxg4 {[%emt 0:00:05]} Qa1 {[%emt 0:04:03]} 19. cxd4 {[%emt 0:11:30]} exd4 {[%emt 0:00:11]} 20. Bb3 {[%emt 0:00:48]} Na5 {[%emt 0:04:18]} 21. Nh4 {[%emt 0:08:25]} c5 {[%emt 0:04:47]} 22. Bd5 {[%emt 0:09:10]} Bxd5 {[%emt 0:01:15]} 23. exd5 {[%emt 0:00:04]} Rxe1+ {[%emt 0:00:22]} 24. Qxe1 {[%emt 0:00:01]} Nb3 {[%emt 0:00:08]} 25. Qe8+ {[%emt 0:07:18]} Bf8 {[%emt 0:03:51]} 26. Nxg6 {[%emt 0:02:46]} Qxc1+ {[%emt 0:00:06]} 27. Kh2 {[%emt 0:00:03]} fxg6 {[%emt 0:00:06]} 28. Qxg6+ {[%emt 0:00:20]} Kh8 {[%emt 0:00:19]} 29. Qf7 {[%emt 0:00:54]} Bd6+ {[%emt 0:00:13]} 30. g3 {[%emt 0:00:48]} Qg5 {[%emt 0:00:25]} 31. Qe6 {[%emt 0:05:31]} Qe7 {[%emt 0:00:12]} 32. Qg6 {[%emt 0:01:38]} c4 {[%emt 0:00:50]} 33. Kg2 {[%emt 0:00:23]} Qf8 {[%emt 0:00:05]} 34. dxc4 {[%emt 0:02:32]} bxc4 {[%emt 0:00:15]} 35. Qc2 {[%emt 0:00:04]} Qc8 {[%emt 0:02:40]} 36. Qg6 {[%emt 0:00:08]} Bf8 {[%emt 0:00:07]} 37. g5 {[%emt 0:06:03]} hxg5 {[%emt 0:00:23]} 38. Qxg5 {[%emt 0:04:02]} d3 {[%emt 0:01:16]} 39. Qf6+ {[%emt 0:09:22]} Bg7 {[%emt 0:00:15]} 40. Qh4+ {[%emt 0:00:03]} Kg8 {[%emt 0:00:07]} 41. d6 {[%emt 0:00:05]} d2 {[%emt 0:01:04]} 42. d7 {[%emt 0:01:08]} Qxd7 {[%emt 0:00:11]} 43. Qxc4+ {[%emt 0:00:07]} Qf7 {[%emt 0:00:06]} 44. Qc8+ {[%emt 0:00:43]} Kh7 {[%emt 0:00:20]} 45. Qc2+ {[%emt 0:00:12]} Kh6 {[%emt 0:00:06]} 46. f4 {[%emt 0:04:39]} Qd5+ {[%emt 0:00:08]} 0-1

[Event "ESP-chT Primera Division 2019"]
[Site "Linares"]
[Date "2019.09.01"]
[Round "7.21"]
[White "Martins, David Pires Tavares"]
[Black "Sarana, Alexey"]
[Result "0-1"]
[ECO "A12"]
[WhiteElo "2427"]
[BlackElo "2655"]
[Annotator "RC"]
[PlyCount "80"]
[EventDate "2019.08.26"]
[EventType "team-tourn"]
[EventCountry "ESP"]
[SourceTitle "playchess.com"]
[Source "ChessBase"]
[SourceQuality "1"]
[TimeControl "5400+30"]

1. Nf3 {[%emt 0:00:00]} d5 {[%emt 0:00:00]} 2. b3 {[%emt 0:00:00]} Nf6 {[%emt 0:00:02]} 3. Bb2 {[%emt 0:00:00]} c6 {[%emt 0:00:43]} 4. c4 {[%emt 0:00:02]} Bf5 {[%emt 0:01:37]} 5. g3 {[%emt 0:02:04]} e6 {[%emt 0:00:23]} 6. Bg2 {[%emt 0:00:19]} Nbd7 {[%emt 0:00:27]} 7. O-O {[%emt 0:01:13]} h6 {[%emt 0:00:06]} 8. d3 {[%emt 0:03:36]} Bc5 {[%emt 0:01:52]} 9. a3 {[%emt 0:01:59]} a5 {[%emt 0:00:20]} 10. Nbd2 {[%emt 0:00:48]} O-O {[%emt 0:00:11]} 11. Re1 {[%emt 0:05:03]} Bh7 {[%emt 0:00:52]} 12. Bh3 {[%emt 0:22:32]} Qe7 {[%emt 0:02:09]} 13. e4 {[%emt 0:02:01]} dxe4 {[%emt 0:00:30]} 14. dxe4 {[%emt 0:00:23]} Rfd8 {[%emt 0:03:58]} 15. Qe2 {[%emt 0:08:45]} Ba7 {[%emt 0:02:31]} 16. Bc3 {[%emt 0:08:09]} Bc5 {[%emt 0:06:53]} 17. Bb2 {[%emt 0:01:09]} Bb6 {[%emt 0:01:05]} 18. Ne5 {[%emt 0:07:10]} Nc5 {[%emt 0:02:17]} 19. Bg2 {[%emt 0:01:32]} Rxd2 {[%emt 0:01:38]} 20. Qxd2 {[%emt 0:00:05]} Nxb3 {[%emt 0:00:53]} 21. Qc3 {[%emt 0:02:21]} Nxa1 {[%emt 0:00:09]} 22. Nd3 {[%emt 0:00:11]} Bd4 {[%emt 0:02:58]} 23. Qxd4 {[%emt 0:01:00]} Nc2 {[%emt 0:00:03]} 24. Qc3 {[%emt 0:01:07]} Nxe1 {[%emt 0:00:04]} 25. Nxe1 {[%emt 0:00:12]} e5 {[%emt 0:01:43]} 26. f3 {[%emt 0:02:14]} Nd7 {[%emt 0:00:21]} 27. Nd3 {[%emt 0:00:19]} f6 {[%emt 0:00:07]} 28. c5 {[%emt 0:01:20]} Kh8 {[%emt 0:00:07]} 29. Bc1 {[%emt 0:00:23]} Nf8 {[%emt 0:00:31]} 30. Be3 {[%emt 0:01:59]} Ne6 {[%emt 0:00:10]} 31. a4 {[%emt 0:02:40]} Nd4 {[%emt 0:00:34]} 32. Kf2 {[%emt 0:01:22]} Rd8 {[%emt 0:01:35]} 33. Bf1 {[%emt 0:00:11]} Qc7 {[%emt 0:00:20]} 34. Nb2 {[%emt 0:00:20]} Bg8 {[%emt 0:00:31]} 35. Bc4 {[%emt 0:00:16]} b5 {[%emt 0:00:41]} 36. cxb6 {[%emt 0:01:27]} Qxb6 {[%emt 0:00:04]} 37. Bxg8 {[%emt 0:00:18]} Kxg8 {[%emt 0:01:06]} 38. Nd3 {[%emt 0:01:05]} Qb3 {[%emt 0:00:55]} 39. Qxa5 {[%emt 0:02:00]} Qc2+ {[%emt 0:00:36]} 40. Bd2 {[%emt 0:00:14]} Ne6 {[%emt 0:00:07]} 0-1